bitfinex/quotes_SOLUSD_20250821
["timestamp","ask_amount","ask_price","bid_price","bid_amount"]
[1755802815478,42.88,182.52,182.51,0.75]
[1755802816181,42.88,182.52,182.51,0.03]
[1755802817276,42.88,182.52,182.51,0.7]
[1755802817780,42.88,182.52,182.51,0.03]
[1755802818878,48.5689284,182.52,182.51,0.03]
[1755802819591,42.88,182.52,182.51,0.7]
[1755802820289,5.7489284,182.53,182.51,0.7]
[1755802820483,42.86,182.52,182.51,0.7]
[1755802822789,42.86,182.52,182.51,0.03]
[1755802822967,48.5489284,182.52,182.51,0.03]
[1755802823764,42.86,182.52,182.51,0.03]
[1755802823973,48.5489284,182.52,182.51,0.03]
[1755802824579,48.5489284,182.52,182.51,0.7]
[1755802825488,5.6889284,182.52,182.51,0.7]
[1755802825671,48.5489284,182.52,182.51,0.7]
[1755802826065,48.5489284,182.52,182.51,0.03]
[1755802827273,42.86,182.52,182.51,0.7]
[1755802827586,48.5489284,182.52,182.51,0.7]
[1755802827787,42.86,182.52,182.51,0.7]
[1755802828487,5.7489284,182.53,182.51,0.7]
[1755802828691,48.5489284,182.52,182.51,0.7]
[1755802828871,48.5489284,182.52,182.51,0.03]
[1755802829883,42.86,182.52,182.51,0.03]
[1755802830192,42.86,182.52,182.51,0.7]
[1755802830793,42.84,182.52,182.51,0.7]
[1755802830996,42.9,182.53,182.51,6.3889284]
[1755802831198,42.9,182.53,182.51,5.7189284]
[1755802831376,42.9,182.53,182.52,0.67]
[1755802833091,42.9,182.53,182.51,0.03]
[1755802833795,42.9,182.53,182.51,0.7]
[1755802834192,42.9,182.53,182.52,0.67]
[1755802835004,0.06,182.53,182.52,0.67]
[1755802835296,0.06,182.53,182.52,19.95452241]
[1755802835471,0.06,182.55,182.52,36.60167044]
[1755802835675,0.06,182.55,182.54,19.28452241]
[1755802836188,0.06,182.55,182.54,19.95452241]
[1755802838502,0.06,182.55,182.52,5.479368]
[1755802838800,0.06,182.55,182.52,13.59559401]
[1755802839002,0.06,182.55,182.52,19.95452241]
[1755802839384,0.06,182.55,182.52,19.28452241]
[1755802839708,0.06,182.55,182.53,0.67]
[1755802840002,0.06,182.55,182.54,19.28452241]
[1755802840375,0.06,182.55,182.54,19.95452241]
[1755802845308,0.06,182.55,182.54,25.43277375]
[1755802849101,0.06,182.55,182.54,19.95452241]
[1755802850926,0.06,182.55,182.54,25.43277375]
[1755802851725,0.06,182.55,182.54,19.95452241]
[1755802854696,0.06,182.55,182.52,42.82]
[1755802854902,0.06,182.55,182.54,19.28452241]
[1755802855925,0.06,182.55,182.54,19.96452241]
[1755802856627,0.06,182.55,182.54,14.27559401]
[1755802856844,0.06,182.55,182.54,19.96452241]
[1755802858229,0.06,182.55,182.54,19.28452241]
[1755802858601,0.06,182.55,182.54,13.59559401]
[1755802858802,0.06,182.55,182.54,19.28452241]
[1755802859626,0.06,182.55,182.54,13.59559401]
[1755802860206,6.2689284,182.55,182.51,0.03]
[1755802860410,5.6889284,182.53,182.51,0.03]
[1755802860808,0.52,182.52,182.51,0.03]
[1755802861002,6.2089284,182.52,182.51,0.03]
[1755802861408,0.52,182.52,182.51,0.03]
[1755802861612,6.2089284,182.52,182.51,0.03]
[1755802861823,0.52,182.52,182.51,0.03]
[1755802862522,6.2089284,182.52,182.51,0.03]
[1755802863243,6.49325154,182.52,182.51,0.03]
[1755802864024,12.18217994,182.52,182.51,0.03]
[1755802864223,15.86829647,182.52,182.51,0.03]
[1755802864525,10.17936807,182.52,182.51,0.03]
[1755802864838,6.49325154,182.52,182.51,0.03]
[1755802866328,0.80432314,182.52,182.51,0.03]
[1755802866535,6.49325154,182.52,182.51,0.03]
[1755802866843,5.7489284,182.55,182.51,0.71]
[1755802867039,0.06,182.55,182.52,0.68]
[1755802867346,0.06,182.55,182.53,0.68]
[1755802867521,0.06,182.55,182.51,13.62559401]
[1755802867522,0.06,182.55,182.51,19.99452241]
[1755802867722,5.7489284,182.55,182.51,14.30559401]
[1755802867929,0.06,182.55,182.51,19.99452241]
[1755802868141,0.06,182.55,182.51,19.31452241]
[1755802868344,0.06,182.55,182.52,0.68]
[1755802868539,0.06,182.55,182.51,19.31452241]
[1755802868743,0.06,182.55,182.51,0.03]
[1755802868744,6.2089284,182.54,182.51,0.03]
[1755802869051,5.6889284,182.53,182.51,0.03]
[1755802869734,5.6889284,182.54,182.51,0.03]
[1755802870144,6.2089284,182.54,182.51,0.03]
[1755802871144,0.06,182.55,182.51,0.03]
[1755802871145,6.2089284,182.53,182.51,0.03]
[1755802871351,5.6889284,182.53,182.51,0.03]
[1755802871734,6.2089284,182.53,182.51,0.03]
[1755802873330,6.49325154,182.52,182.51,0.03]
[1755802873945,75.27325154,182.52,182.51,0.03]
[1755802876439,32.49325154,182.52,182.51,0.03]
[1755802876639,75.27325154,182.52,182.51,0.03]
[1755802877259,74.75325154,182.52,182.51,0.03]
[1755802877630,75.27325154,182.52,182.51,0.03]
[1755802877955,74.75325154,182.52,182.51,0.03]
[1755802878155,26.28432314,182.52,182.51,0.03]
[1755802878359,69.04432314,182.52,182.51,0.03]
[1755802878664,42.76,182.52,182.51,0.69]
[1755802878826,42.76,182.52,182.51,0.03]
[1755802879141,26.0,182.52,182.51,0.03]
[1755802879545,26.0,182.52,182.51,0.69]
[1755802879735,5.6889284,182.54,182.51,0.69]
[1755802879934,42.76,182.53,182.51,0.69]
[1755802880133,42.76,182.53,182.52,0.66]
[1755802880546,42.76,182.53,182.51,0.03]
[1755802880743,42.82,182.53,182.51,0.69]
[1755802882459,42.82,182.53,182.52,0.66]
[1755802882758,42.82,182.53,182.51,0.69]
[1755802882933,0.06,182.53,182.51,0.03]
[1755802883138,0.06,182.53,182.52,6.3489284]
[1755802883843,0.06,182.53,182.52,19.94452241]
[1755802884471,0.06,182.53,182.52,25.42337404]
[1755802884668,0.06,182.53,182.52,31.11230244]
[1755802885347,0.06,182.53,182.52,25.63345081]
[1755802885555,0.06,182.53,182.52,19.94452241]
[1755802887055,0.06,182.53,182.52,25.63345081]
[1755802887774,0.06,182.53,182.52,19.94452241]
[1755802888866,0.06,182.53,182.52,25.63345081]
[1755802889068,0.06,182.55,182.52,31.11230244]
[1755802889254,0.06,182.57,182.55,13.59559401]
[1755802889655,0.06,182.57,182.56,14.25559401]
[1755802890059,0.06,182.57,182.56,19.94452241]
[1755802890746,0.06,182.57,182.56,19.28452241]
[1755802891249,0.06,182.57,182.52,14.25559401]
[1755802891466,0.06,182.57,182.55,5.6889284]
[1755802892155,0.06,182.57,182.53,14.25559401]
[1755802892353,0.06,182.57,182.53,5.6889284]
[1755802892571,0.7,182.57,182.54,5.6889284]
[1755802894169,0.7,182.57,182.53,5.6889284]
[1755802894390,0.7,182.57,182.54,5.6889284]
[1755802894679,0.64,182.56,182.53,5.6889284]
[1755802894848,0.7,182.57,182.53,5.6889284]
[1755802895553,0.06,182.57,182.53,6.3489284]
[1755802896576,0.06,182.57,182.54,0.66]
[1755802896968,0.06,182.57,182.54,6.3489284]
[1755802897878,0.06,182.57,182.54,0.66]
[1755802901169,42.8,182.57,182.54,0.66]
[1755802901862,42.8,182.57,182.53,5.6889284]
[1755802902057,0.06,182.57,182.56,5.6889284]
[1755802902261,0.06,182.57,182.56,6.3489284]
[1755802903180,0.06,182.57,182.54,6.3489284]
[1755802903361,0.06,182.57,182.54,0.66]
[1755802903563,0.06,182.57,182.54,6.3489284]
[1755802903776,0.06,182.57,182.54,5.6889284]
[1755802903962,0.06,182.57,182.55,0.66]
[1755802904456,0.06,182.57,182.55,6.3489284]
[1755802904662,0.06,182.57,182.55,5.6889284]
[1755802904878,0.06,182.57,182.55,6.3489284]
[1755802905385,0.06,182.57,182.56,0.66]
[1755802906654,0.06,182.57,182.56,19.94452241]
[1755802906858,0.06,182.59,182.57,13.59559401]
[1755802907079,0.06,182.59,182.58,5.6889284]
[1755802907381,0.06,182.59,182.58,6.3889284]
[1755802911184,0.06,182.59,182.56,0.7]
[1755802911359,0.06,182.59,182.53,0.7]
[1755802911360,0.16,182.58,182.53,0.7]
[1755802911561,5.8489284,182.57,182.52,0.03]
[1755802911888,5.8489284,182.57,182.52,6.4189284]
[1755802912184,0.28432314,182.58,182.53,0.7]
[1755802912389,42.78,182.59,182.54,0.7]
[1755802912569,48.4689284,182.59,182.54,6.3889284]
[1755802912763,48.4689284,182.59,182.54,5.6889284]
[1755802913089,42.76,182.59,182.56,5.6889284]
[1755802913282,0.06,182.59,182.57,6.3889284]
[1755802914170,0.06,182.59,182.57,0.7]
[1755802914373,0.06,182.59,182.57,5.6889284]
[1755802914562,0.06,182.59,182.58,0.7]
[1755802915178,0.06,182.59,182.56,19.28452241]
[1755802915591,0.06,182.59,182.57,0.7]
[1755802915795,0.06,182.59,182.56,14.29559401]
[1755802917469,0.16,182.58,182.53,0.7]
[1755802917668,5.8489284,182.58,182.53,6.3889284]
[1755802917980,0.06,182.59,182.54,19.98452241]
[1755802918180,5.7489284,182.59,182.54,19.98452241]
[1755802918488,5.7489284,182.59,182.54,19.28452241]
[1755802918695,5.7489284,182.59,182.54,19.98452241]
[1755802918872,0.06,182.59,182.54,19.98452241]
[1755802919075,5.7489284,182.59,182.54,19.28452241]
[1755802919278,0.06,182.59,182.55,6.3889284]
[1755802920797,0.22,182.59,182.55,6.3889284]
[1755802920997,0.06,182.59,182.55,6.3889284]
[1755802921698,0.06,182.59,182.55,0.7]
[1755802921699,5.9089284,182.59,182.55,0.7]
[1755802921895,0.06,182.59,182.56,0.7]
[1755802922271,0.06,182.59,182.55,5.6889284]
[1755802922486,0.06,182.59,182.58,5.6889284]
[1755802923010,0.06,182.59,182.58,6.3889284]
[1755802928198,0.06,182.59,182.56,13.59559401]
[1755802928398,0.06,182.59,182.58,13.59559401]
[1755802928602,0.06,182.59,182.57,0.7]
[1755802928898,0.06,182.59,182.57,5.6889284]
[1755802929087,0.06,182.59,182.58,0.7]
[1755802929676,0.06,182.59,182.58,14.29559401]
[1755802929896,0.06,182.59,182.58,19.98452241]
[1755802930402,0.06,182.59,182.58,14.29559401]
[1755802930615,0.06,182.59,182.58,19.98452241]
[1755802935282,0.06,182.59,182.58,19.28452241]
[1755802935499,0.06,182.59,182.58,19.98452241]
[1755802938008,0.06,182.59,182.58,25.46157356]
[1755802938996,0.06,182.59,182.58,19.98452241]
[1755802940406,0.06,182.59,182.58,19.28452241]
[1755802940813,0.06,182.59,182.58,19.96452241]
[1755802941496,0.38,182.64,182.59,13.59559401]
[1755802941692,0.38,182.64,182.6,5.6889284]
[1755802942103,31.97325154,182.65,182.6,5.6889284]
[1755802942407,5.6889284,182.64,182.59,19.96452241]
[1755802942792,31.97325154,182.65,182.6,5.6889284]
[1755802943312,31.97325154,182.65,182.6,6.3689284]
[1755802943611,0.16,182.64,182.6,5.6889284]
[1755802943987,0.16,182.64,182.59,13.59559401]
[1755802944182,26.28432314,182.65,182.6,6.3689284]
[1755802944409,0.16,182.64,182.6,6.3689284]
[1755802944598,0.16,182.64,182.6,5.6889284]
[1755802945111,32.03325154,182.65,182.61,6.3689284]
[1755802945311,32.03325154,182.65,182.61,5.6889284]
[1755802945512,26.34432314,182.65,182.61,6.3689284]
[1755802945714,26.50432314,182.65,182.61,6.3689284]
[1755802945894,26.50432314,182.65,182.61,5.6889284]
[1755802946094,32.19325154,182.65,182.61,5.6889284]
[1755802946392,0.16,182.64,182.59,14.27559401]
[1755802946605,26.34432314,182.65,182.6,6.3689284]
[1755802946800,32.03325154,182.65,182.6,6.3689284]
[1755802947006,32.03325154,182.65,182.61,6.3689284]
[1755802947515,32.19325154,182.65,182.61,6.3689284]
[1755802947813,26.50432314,182.65,182.61,5.6889284]
[1755802948002,32.19325154,182.65,182.6,5.6889284]
[1755802948202,32.19325154,182.65,182.6,6.3689284]
[1755802948596,6.19325154,182.65,182.6,6.3689284]
[1755802949816,6.19325154,182.65,182.61,0.68]
[1755802950021,0.34432314,182.65,182.61,0.68]
[1755802950327,0.06,182.65,182.64,5.6889284]
[1755802950814,0.06,182.65,182.64,6.3689284]
[1755802951588,0.06,182.65,182.64,19.96452241]
[1755802952619,0.06,182.65,182.64,25.43977427]
[1755802952836,0.06,182.65,182.64,19.75084587]
[1755802953138,0.06,182.65,182.64,25.43977427]
[1755802953630,0.06,182.65,182.64,19.96452241]
[1755802955993,0.06,182.65,182.64,19.28452241]
[1755802956395,0.06,182.65,182.64,19.96452241]
[1755802957407,0.06,182.65,182.64,19.28452241]
[1755802957815,0.06,182.65,182.64,19.96452241]
[1755802958120,0.06,182.65,182.64,25.43977427]
[1755802958330,0.06,182.65,182.64,19.96452241]
[1755802959114,0.06,182.65,182.64,25.43977427]
[1755802961037,0.06,182.65,182.64,27.63426127]
[1755802961735,0.06,182.65,182.64,27.66426127]
[1755802962637,0.06,182.65,182.64,70.30426127]
[1755802970825,0.06,182.67,182.64,70.30426127]
[1755802970826,0.06,182.67,182.66,39.59559401]
[1755802971136,0.06,182.67,182.66,87.90452241]
[1755802971325,0.06,182.67,182.66,88.61452241]
[1755802971733,0.06,182.67,182.66,105.06955941]
[1755802972843,0.06,182.67,182.66,110.54421176]
[1755802974467,0.38,182.74,182.67,13.59559401]
[1755802974627,0.38,182.76,182.73,5.6889284]
[1755802974936,0.38,182.75,182.74,5.6889284]
[1755802975543,0.38,182.77,182.74,5.6889284]
[1755802975720,0.38,182.76,182.75,5.6889284]
[1755802975923,0.38,182.76,182.75,4.6889284]
[1755802976728,26.0,182.79,182.75,5.3989284]
[1755802976934,26.38,182.79,182.77,5.6889284]
[1755802977130,0.38,182.78,182.76,5.6889284]
[1755802979833,0.38,182.77,182.73,13.59559401]
[1755802980046,0.38,182.76,182.74,5.6889284]
[1755802980244,0.38,182.76,182.73,13.59559401]
[1755802980245,0.38,182.78,182.75,5.6889284]
[1755802980439,0.06,182.79,182.75,0.71]
[1755802980639,0.44,182.79,182.76,5.6889284]
[1755802981538,0.44,182.79,182.75,5.6889284]
[1755802982351,0.06,182.79,182.78,5.6889284]
[1755802982741,0.06,182.79,182.78,13.59559401]
[1755802982938,0.06,182.79,182.76,11.3778574]
[1755802983136,0.06,182.79,182.76,13.59559401]
[1755802983438,0.06,182.79,182.77,7.8823324]
[1755802983646,0.06,182.79,182.77,8.5923324]
[1755802984455,0.06,182.79,182.78,5.6889284]
[1755802985167,0.06,182.79,182.78,19.99452241]
[1755802986669,0.06,182.79,182.78,19.28452241]
[1755802987563,0.06,182.79,182.78,2.193163]
[1755802988066,0.44,182.79,182.77,11.6621794]
[1755802988377,0.06,182.79,182.78,5.6889284]
[1755802988579,0.06,182.79,182.78,19.99452241]
[1755802990370,0.06,182.79,182.78,25.46558051]
[1755802990673,0.06,182.79,182.78,19.99452241]
[1755802992279,0.06,182.81,182.78,19.99452241]
[1755802992280,0.06,182.81,182.78,14.30559401]
[1755802992574,0.06,182.81,182.8,13.59559401]
[1755802992978,0.06,182.81,182.8,19.99452241]
[1755802993341,0.44,182.91,182.8,19.99452241]
[1755802993542,0.44,182.91,182.87,5.6889284]
[1755802993778,0.44,182.91,182.86,5.6889284]
[1755802993974,6.1289284,182.91,182.86,5.6889284]
[1755802994183,0.5,182.9,182.87,5.6889284]
[1755802994853,0.5,182.89,182.84,14.305594]
[1755802995053,0.5,182.89,182.86,5.6889284]
[1755802995266,0.5,182.89,182.87,5.6889284]
[1755802995670,0.5,182.89,182.86,5.6889284]
[1755802995890,0.5,182.88,182.84,13.595594]
[1755802996193,0.5,182.87,182.84,5.6889284]
[1755802996575,0.5,182.86,182.84,5.6889284]
[1755802997090,0.5,182.88,182.84,5.6889284]
[1755802997396,5.6889284,182.87,182.82,5.6889284]
[1755802997684,0.5,182.86,182.82,5.6889284]
[1755802998259,6.1889284,182.86,182.8,5.688929]
[1755802998465,6.1889284,182.85,182.8,11.3778574]
[1755802998675,0.5,182.84,182.8,11.3778574]
[1755802999076,0.5,182.84,182.8,5.6889284]
[1755803000092,0.5,182.84,182.79,5.688929]
[1755803000299,0.5,182.84,182.8,5.6889284]
[1755803000677,0.28432314,182.87,182.83,5.6889284]
[1755803000860,0.28432314,182.87,182.83,6.3889284]
[1755803001061,0.5,182.88,182.83,6.3889284]
[1755803001262,6.1889284,182.88,182.83,6.3889284]
[1755803001590,6.1889284,182.87,182.82,5.6889284]
[1755803001783,0.5,182.86,182.82,5.6889284]
[1755803002090,0.5,182.85,182.76,13.59559401]
[1755803002288,0.5,182.85,182.81,5.6889284]
[1755803002676,0.5,182.84,182.79,0.7]
[1755803002872,0.5,182.84,182.8,6.3889284]
[1755803003072,5.6889284,182.85,182.8,12.0778564]
[1755803003462,6.1889284,182.85,182.81,5.6889284]
[1755803003774,26.0,182.91,182.81,5.6889284]
[1755803003983,132.4,182.9,182.85,5.6889284]
[1755803004184,5.6889284,182.9,182.85,6.3889284]
[1755803004494,0.14216157,182.9,182.86,6.3889284]
[1755803004890,0.5,182.92,182.86,6.3889284]
[1755803005195,6.1889284,182.92,182.87,5.6889284]
[1755803005381,48.7489284,182.92,182.87,6.3889284]
[1755803005586,0.14216157,182.91,182.87,6.3889284]
[1755803005788,0.28432314,182.91,182.87,6.3889284]
[1755803006080,0.28432314,182.91,182.87,0.7]
[1755803006279,5.6889284,182.89,182.84,5.6889284]
[1755803006482,0.5,182.9,182.85,6.3889284]
[1755803006697,6.1889284,182.9,182.85,5.6889284]
[1755803006862,5.6889284,182.9,182.85,5.6889284]
[1755803007064,0.5,182.89,182.85,5.6889284]
[1755803007489,42.74216157,182.91,182.86,6.3889284]
[1755803007664,42.74216157,182.91,182.87,0.7]
[1755803007979,6.1889284,182.9,182.84,0.7]
[1755803008186,6.1889284,182.9,182.85,5.6889284]
[1755803008398,0.5,182.89,182.84,0.7]
[1755803008564,0.5,182.89,182.85,5.6889284]
[1755803008881,0.5,182.89,182.84,0.7]
[1755803009080,0.5,182.89,182.85,5.6889284]
[1755803009289,0.5,182.89,182.84,0.7]
[1755803009597,0.5,182.89,182.85,5.6889284]
[1755803009803,0.5,182.89,182.83,13.59559401]
[1755803009972,0.5,182.89,182.85,5.6889284]
[1755803010570,6.1889284,182.89,182.84,0.7]
[1755803010780,5.6889284,182.87,182.82,0.7]
[1755803010979,6.1889284,182.87,182.82,6.3889284]
[1755803011192,6.1889284,182.87,182.82,0.7]
[1755803011505,26.0,182.88,182.82,5.6889284]
[1755803011675,5.6889284,182.87,182.82,6.3889284]
[1755803012501,26.5,182.88,182.83,0.7]
[1755803012696,31.7489284,182.88,182.82,5.6889284]
[1755803012895,31.7489284,182.88,182.81,0.03]
[1755803012896,5.6889284,182.86,182.81,6.4189284]
[1755803013090,6.1889284,182.86,182.81,6.4189284]
[1755803013473,5.6889284,182.86,182.81,0.03]
[1755803013706,5.6889284,182.85,182.81,0.73]
[1755803014006,42.58,182.87,182.81,6.4189284]
[1755803014007,6.1889284,182.86,182.81,6.4189284]
[1755803014385,42.58,182.87,182.82,0.7]
[1755803014585,42.58,182.87,182.83,5.6889284]
[1755803014787,42.58,182.86,182.84,0.7]
[1755803016585,26.06,182.88,182.81,0.03]
[1755803016586,0.06,182.88,182.85,6.3889284]
[1755803016789,42.58,182.87,182.86,0.7]
[1755803016990,42.58,182.87,182.86,6.3889284]
[1755803017192,42.58,182.87,182.86,0.7]
[1755803018314,0.06,182.88,182.86,6.3889284]
[1755803018506,0.06,182.88,182.87,5.6889284]
[1755803018805,0.06,182.88,182.87,0.7]
[1755803019307,0.06,182.88,182.86,5.6889284]
[1755803019499,0.06,182.88,182.86,6.3889284]
[1755803021083,0.06,182.88,182.86,0.7]
[1755803022398,0.06,182.88,182.85,5.6889284]
[1755803022614,0.06,182.88,182.85,0.7]
[1755803023085,0.06,182.88,182.84,5.6889284]
[1755803023285,0.06,182.88,182.85,0.7]
[1755803023487,0.06,182.88,182.84,5.6889284]
[1755803023808,0.06,182.88,182.86,0.7]
[1755803024207,0.06,182.88,182.85,0.7]
[1755803024713,5.6889284,182.87,182.83,0.7]
[1755803026527,5.97325154,182.86,182.81,0.03]
[1755803026700,48.2489284,182.85,182.81,0.73]
[1755803026900,42.56,182.85,182.81,0.73]
[1755803027222,5.6889284,182.84,182.81,0.73]
[1755803027604,48.2489284,182.85,182.81,0.73]
[1755803027918,5.6889284,182.84,182.81,0.73]
[1755803028122,0.28432314,182.84,182.81,0.03]
[1755803028298,42.56,182.83,182.81,0.03]
[1755803028503,42.56,182.83,182.81,0.75]
[1755803028699,42.56,182.83,182.82,0.72]
[1755803029021,42.56,182.83,182.81,0.03]
[1755803030004,48.2489284,182.83,182.81,0.03]
[1755803030716,42.54,182.82,182.81,0.03]
[1755803032307,5.6889284,182.83,182.81,0.03]
[1755803032506,42.54,182.82,182.81,0.03]
[1755803033124,49.01325154,182.82,182.81,0.03]
[1755803034728,48.51325154,182.82,182.81,0.03]
[1755803034931,49.01325154,182.82,182.81,0.03]
[1755803035111,43.32432314,182.82,182.81,0.03]
[1755803035315,48.53325154,182.82,182.81,0.03]
[1755803035547,42.84432314,182.82,182.81,0.03]
[1755803035841,48.53325154,182.82,182.81,0.03]
[1755803036051,49.03325154,182.82,182.81,0.03]
[1755803037527,43.34432314,182.82,182.81,0.03]
[1755803037701,49.03325154,182.82,182.81,0.03]
[1755803038124,52.71806175,182.82,182.81,0.03]
[1755803038306,9.65806175,182.82,182.81,0.75]
[1755803038502,9.65806175,182.82,182.81,0.03]
[1755803038503,48.55325154,182.82,182.81,0.03]
[1755803038735,5.97325154,182.82,182.81,0.03]
[1755803038950,48.55325154,182.82,182.81,0.03]
[1755803039843,42.86432314,182.82,182.81,0.03]
[1755803040143,48.55325154,182.82,182.81,0.03]
[1755803041529,49.05325154,182.82,182.81,0.03]
[1755803041730,51.73818758,182.82,182.81,0.03]
[1755803042256,48.0556564,182.82,182.81,0.03]
[1755803042624,6.1889284,182.82,182.81,0.03]
[1755803042863,48.8089284,182.82,182.81,0.03]
[1755803043656,49.09325154,182.82,182.81,0.03]
[1755803045056,52.77344427,182.82,182.81,0.03]
[1755803045239,49.09325154,182.82,182.81,0.03]
[1755803046677,26.0,182.8,182.79,0.03]
[1755803046835,5.97325154,182.78,182.77,0.03]
[1755803047034,5.97325154,182.78,182.75,0.03]
[1755803047035,26.28432314,182.76,182.75,0.03]
[1755803047261,78.2327112,182.76,182.75,0.03]
[1755803047462,36.1227112,182.76,182.75,0.03]
[1755803047638,78.7227112,182.76,182.75,0.03]
[1755803048464,36.1227112,182.76,182.75,0.03]
[1755803048635,31.97325154,182.76,182.75,0.03]
[1755803049041,74.57325154,182.76,182.75,0.03]
[1755803049653,74.59325154,182.76,182.75,0.03]
[1755803049859,74.57325154,182.76,182.75,0.03]
[1755803050272,31.97325154,182.76,182.75,0.03]
[1755803050659,74.57325154,182.76,182.75,0.03]
[1755803051279,75.04325154,182.76,182.75,0.03]
[1755803051448,74.57325154,182.76,182.75,0.03]
[1755803051646,68.88432314,182.76,182.75,0.03]
[1755803051865,74.57325154,182.76,182.75,0.03]
[1755803053638,75.04325154,182.76,182.75,0.03]
[1755803054072,74.57325154,182.76,182.75,0.03]
[1755803054961,74.55325154,182.76,182.75,0.03]
[1755803055863,31.97325154,182.76,182.75,0.03]
[1755803056066,74.55325154,182.76,182.75,0.03]
[1755803056654,75.02325154,182.76,182.75,0.03]
[1755803058350,75.02325154,182.76,182.73,0.03]
[1755803058351,5.97325154,182.74,182.73,0.03]
[1755803058683,48.55325154,182.74,182.73,0.03]
[1755803058989,49.02325154,182.74,182.73,0.03]
[1755803060143,48.55325154,182.74,182.73,0.03]
[1755803060346,5.97325154,182.74,182.73,0.03]
[1755803060559,42.88432314,182.74,182.73,0.75]
[1755803060766,48.57325154,182.74,182.73,0.75]
[1755803061358,5.97325154,182.74,182.73,0.75]
[1755803061674,48.57325154,182.74,182.73,0.03]
[1755803062252,48.57325154,182.74,182.73,0.75]
[1755803063280,48.57325154,182.74,182.73,0.03]
[1755803068076,0.06,182.82,182.75,26.0]
[1755803068259,0.06,182.82,182.8,5.6889284]
[1755803068454,0.06,182.82,182.81,5.6889284]
[1755803069587,0.06,182.82,182.81,21.47732441]
[1755803071188,0.06,182.82,182.81,26.94748468]
[1755803073103,0.06,182.82,182.81,21.47732441]
[1755803074067,0.06,182.82,182.81,7.8817304]
[1755803077077,0.06,182.82,182.81,13.35189067]
[1755803078567,0.06,182.82,182.81,26.94748468]
[1755803086494,0.06,182.82,182.81,21.25855628]
[1755803086676,0.06,182.82,182.81,26.94748468]
[1755803088802,0.06,182.82,182.81,21.25855628]
[1755803088977,0.06,182.82,182.81,26.94748468]
[1755803090393,0.73,182.82,182.81,19.28452241]
[1755803090595,0.06,182.82,182.81,19.28452241]
[1755803091109,0.06,182.82,182.81,24.75468268]
[1755803091299,0.06,182.82,182.81,19.06575428]
[1755803091606,0.06,182.82,182.81,19.28452241]
[1755803093509,0.06,182.82,182.81,24.75468268]
[1755803093814,0.06,182.82,182.81,19.28452241]
[1755803096512,0.73,182.82,182.81,19.28452241]
[1755803097511,0.73,182.82,182.81,13.59559401]
[1755803097711,0.73,182.82,182.81,19.28452241]
[1755803098380,0.06,182.82,182.81,24.75468268]
[1755803101835,0.06,182.82,182.81,26.94712468]
[1755803103706,0.06,182.84,182.83,26.0]
[1755803103894,0.06,182.84,182.83,31.6889284]
[1755803104498,0.06,182.84,182.83,37.15849028]
[1755803106298,0.73,182.84,182.83,37.15849028]
[1755803107322,0.73,182.84,182.83,11.15849028]
[1755803110068,0.73,182.84,182.79,5.6889284]
[1755803110229,0.73,182.84,182.8,13.59559401]
[1755803110929,0.73,182.84,182.81,5.6889284]
[1755803113054,0.73,182.84,182.78,13.62559401]
[1755803113221,43.04,182.83,182.8,5.6889284]
[1755803113423,43.04,182.83,182.79,5.6889284]